Cogmind - Beta 13 @@@ ROGUE MODE // 2024.07.01 @ 14:24:49 Player: mournfully Result: Destroyed by G-34 Mercenary with Small Laser Performance ------------- Evolutions (1) 500 Regions Visited (2) 400 Robots Destroyed (38) 190 Value Destroyed (898) 898 Prototype IDs (0) 0 Alien Tech Used (0) 0 Bonus (0) 0 TOTAL SCORE: 1988 Bonus ------- None Cogmind --------- Core Integrity 0/400 Matter 300/300 Energy 250/250 System Corruption 0% Temperature Cool (9) Movement Core (850) Ox16 Location -9/Materials Parts ------- > --- POWER (1) -------- Ion Engine > --- PROPULSION (2) --- (None) > --- UTILITY (4) ------ Small Storage Unit High-capacity Storage Unit > --- WEAPON (2) ------- Small Laser > --- INVENTORY (20) --- Light Ion Engine Mining Laser Peak State ------------ > --- POWER ------------ Ion Engine > --- PROPULSION ------- Compact Wheel Compact Wheel > --- UTILITY ---------- Small Storage Unit Medium Storage Unit Sensor Array Utility Shielding > --- WEAPON ----------- Medium Laser Light Assault Rifle > --- INVENTORY -------- Ion Engine Light Ion Engine Wheel High-capacity Storage Unit Medium Laser Small Laser Light Assault Rifle Light Assault Rifle Grenade Launcher Mining Laser [Rating: 10] Favorites ----------- Power Ion Engine Engine Ion Engine Propulsion Aluminum Leg Treads Light Treads Leg Aluminum Leg Wheel Compact Wheel Utility Small Storage Unit Device Seismic Detector Storage Small Storage Unit Protection Utility Shielding Weapon Medium Laser Energy Gun Medium Laser Ballistic Gun Light Assault Rifle Launcher Grenade Launcher Special Weapon Mining Laser Build | -11 -10 -9 ------- Run | Yrd Mat Mat Slots Evolved 2 | . . 2 Power . | . . . Propulsion . | . . . Utility 2 | . . 2 Weapon . | . . . Parts Attached 47 | 7 21 19 Power 6 | 1 2 3 Engine 6 | 1 2 3 Core . | . . . Reactor . | . . . Propulsion 15 | 2 7 6 Treads 2 | 2 . . Leg 7 | . 4 3 Wheel 6 | . 3 3 Hover . | . . . Flight . | . . . Utility 7 | 2 2 3 Device 2 | 1 . 1 Storage 4 | 1 2 1 Processor . | . . . Hackware . | . . . Protection 1 | . . 1 Artifact . | . . . Weapon 19 | 2 10 7 Energy Gun 10 | 1 6 3 Energy Cannon . | . . . Ballistic Gun 7 | 1 3 3 Ballistic Cannon . | . . . Launcher 1 | . . 1 Special Weapon 1 | . 1 . Impact Weapon . | . . . Slashing Weapon . | . . . Piercing Weapon . | . . . Special Melee Weapon . | . . . Unidentified Prototypes . | . . . Parts Lost 19 | . 4 15 Power 3 | . 1 2 Propulsion 8 | . 2 6 Utility 3 | . 1 2 Weapon 5 | . . 5 Highest Loss Streak 12 | . 2 12 To Critical Strikes . | . . . Average Slot Usage (%) 96 | . 97 90 Engine 13 | . 14 9 Treads 3 | . 4 . Leg 18 | . 20 10 Wheel 2 | . . 10 Device 3 | . 2 7 Storage 24 | . 24 22 Protection 1 | . . 8 Energy Gun 14 | . 15 9 Ballistic Gun 10 | . 10 10 Special Weapon 1 | . 2 . Naked Turns . | . . . Heaviest Build 57 | 15 23 57 Greatest Support 40 | 40 40 32 Greatest Overweight (x) 5 | 4 2 5 Average Overweight (x) . | . . . Largest Inventory Capacity 20 | 8 10 20 Average Capacity 10 | 7 9 16 Most Carried 10 | 3 10 10 Average Carried 8 | 1 9 8 Final Capacity 20 | 8 10 20 Final Carried 10 | 3 10 2 Class Distribution -------------------- 88% | Mutant 11% | Scavenger-Mutant Dominant Class ---------------- Mutant | -10/Materials Mutant | -9/Materials Resources | -11 -10 -9 ----------- Run | Yrd Mat Mat Matter Collected 843 | 276 306 261 Remotely . | . . . Salvage Created 1361 | 111 700 550 Parts 67 | 6 38 23 Haulers Intercepted 2 | . 2 . Recyclers Shooed 3 | . 3 . Parts Field Recycled . | . . . Retrieved Matter . | . . . Parts Self-Destructed . | . . . Prevented . | . . . Kills | -11 -10 -9 ------- Run | Yrd Mat Mat Combat Hostiles Destroyed 24 | . 12 12 Guns 22 | . 11 11 AOE 1 | . . 1 Classes Destroyed 9 | 2 7 . Worker 2 | . 1 1 Builder 1 | . 1 . Tunneler 2 | 1 1 . Hauler 2 | . 2 . Recycler 3 | 1 1 1 Operator 2 | . 2 . Watcher 2 | . 2 . Swarmer 5 | . 3 2 Grunt 19 | . 9 10 Best Kill Streak 6 | 2 3 6 Combat Bots Only 3 | . 3 3 Max Kills in Single Turn 1 | 1 1 1 Gunslinging . | . . . Exploded 1 | . . 1 Melee . | . . . Uniques/NPCs Destroyed . | . . . Combat | -11 -10 -9 -------- Run | Yrd Mat Mat Hostile Shots Fired 279 | . 83 196 Missed 64 | . 18 46 Damage Taken 2525 | . 914 1611 Core 537 | . 132 405 Absorbed by Shields . | . . . Redirected to Shielding 50 | . . 50 Core Remaining (%) 73 | 100 47 . Volleys Fired 168 | 2 103 63 Largest 2 | 2 2 2 Hottest 120 | 70 120 80 Shots Fired 302 | 4 195 103 Gun 294 | 4 190 100 Cannon . | . . . Launcher 3 | . . 3 Special 5 | . 5 . Kinetic 130 | 2 76 52 Thermal 169 | 2 119 48 Explosive 3 | . . 3 Electromagnetic . | . . . Robot Hit Streak 12 | 3 11 12 Robot Miss Streak 4 | . 4 4 Penetration Max . | . . . Secondary Targets 2 | . 1 1 Max Gunslinging Chain 1 | . 1 1 Shots Hit Robots 189 | 3 122 64 Core Hits 75 | 3 39 33 Critical Kills . | . . . Critical Parts Destroyed 2 | . 1 1 Critical Strikes 12 | . 8 4 Burn 10 | . 7 3 Destroy 2 | . 1 1 Melee Attacks . | . . . Impact . | . . . Slashing . | . . . Piercing . | . . . Sneak Attacks . | . . . Combat Hostiles . | . . . Follow-up Attacks . | . . . Damage Inflicted 2405 | 36 1470 899 Guns 2128 | 36 1356 736 Cannons . | . . . Explosions 277 | . 114 163 Melee . | . . . Ramming . | . . . Kinetic 878 | 23 524 331 Thermal 1250 | 13 832 405 Explosive 277 | . 114 163 Electromagnetic . | . . . Impact . | . . . Slashing . | . . . Piercing . | . . . Highest Corruption 1 | . 1 . Average Corruption 1 | . 1 . Corruption Purged . | . . . Corruption Blocked . | . . . Effects 4 | . 4 . Message Errors 2 | . 2 . Matter Fused 2 | . 2 . Overload Shots . | . . . Overflow Damage 21 | . 21 . Projectiles . | . . . Explosions 21 | . 21 . Melee . | . . . Knockbacks . | . . . Impact . | . . . Kinetic . | . . . Secondary . | . . . Self-Inflicted Damage 164 | . 164 . Shots 2 | . 2 . Rammed . | . . . Targets Rammed . | . . . Kicked . | . . . Crushed . | . . . Highest Temperature 270 | 9 270 163 Average Temperature 55 | 6 59 49 Received Heat Transfer 1116 | . 306 810 Effects 1 | . 1 . Interference 1 | . 1 . Siege Activations . | . . . Robots Corrupted . | . . . Combat Hostiles . | . . . Parts Fried . | . . . Impact Corruptions . | . . . Robots Melted 1 | . 1 . Combat Hostiles 1 | . 1 . Parts Melted 12 | . 8 4 Heat Transferred 4180 | 37 2784 1359 Parts Sabotaged . | . . . Parts Stolen . | . . . Parts Stripped . | . . . Power Chain Reactions . | . . . Alert | -11 -10 -9 ------- Run | Yrd Mat Mat Peak Influence 252 | 10 198 252 Initial 24 | . 6 24 Average 58 | 5 48 122 Maximum Alert Level 1 | . . 1 Low Security (%) 95 | 100 100 73 Level 1 4 | . . 26 Level 2 . | . . . Level 3 . | . . . Level 4 . | . . . Level 5 . | . . . High Security . | . . . Max Security . | . . . Squads Dispatched 5 | . 3 2 Investigation 1 | . 1 . Extermination . | . . . Reinforcement 4 | . 2 2 Assault . | . . . Garrison . | . . . Intercept . | . . . Searches Triggered . | . . . Construction Impeded 1 | . . 1 Haulers Reinforced . | . . . Active Scanning Responses . | . . . Cargo Convoy Interrupts . | . . . Stealth | -11 -10 -9 --------- Run | Yrd Mat Mat Distress Signals 3 | . 2 1 Communications Jammed . | . . . Distress Signals . | . . . Times Spotted 49 | . 28 21 Peak Tracking Total 8 | . 5 8 Tactical Retreats 4 | . 2 2 Traps | -11 -10 -9 ------- Run | Yrd Mat Mat Traps Triggered 2 | . 2 . Indirectly . | . . . Trap Hack Attempts . | . . . Triggered . | . . . Disarmed . | . . . Reprogrammed . | . . . Reused . | . . . Traps Extracted . | . . . Installed . | . . . Triggered . | . . . Machines | -11 -10 -9 ---------- Run | Yrd Mat Mat Machines Disabled 3 | . 2 1 Max in Single Turn 1 | . 1 1 Machines Repaired . | . . . Machines Dismantled . | . . . Machines Sabotaged . | . . . Overloaded Fab Kills . | . . . Hacking | -11 -10 -9 --------- Run | Yrd Mat Mat Machines Accessed 6 | . 6 . Terminals 6 | . 6 . Fabricators . | . . . Repair Stations . | . . . Recycling Units . | . . . Scanalyzers . | . . . Garrison Access . | . . . Total Hacks 18 | . 18 . Successful 5 | . 5 . Failed 13 | . 13 . Catastrophic 2 | . 2 . Database Lockouts . | . . . Manual 18 | . 18 . Terminals 18 | . 18 . Fabricators . | . . . Repair Stations . | . . . Recycling Units . | . . . Scanalyzers . | . . . Garrison Access . | . . . Terminal Hacks 4 | . 4 . Robot Analysis 1 | . 1 . Terminal Index 1 | . 1 . Unreport Threat 1 | . 1 . Recall Investigation 1 | . 1 . Fabricator Hacks . | . . . Repair Station Hacks . | . . . Recycling Unit Hacks . | . . . Scanalyzer . | . . . Garrison Access Hacks . | . . . Unauthorized Hacks 1 | . 1 . Terminals 1 | . 1 . Botnet 1 | . 1 . Fabricators . | . . . Repair Stations . | . . . Recycling Units . | . . . Scanalyzers . | . . . Garrison Access . | . . . Data Cores Recovered . | . . . Used . | . . . Hacking Detections 6 | . 6 . Full Trace Events 2 | . 2 . Feedback Events . | . . . Feedback Blocked . | . . . Robot Schematics Acquired . | . . . Robots Built . | . . . Authchips . | . . . Time . | . . . Total Robot Build Rating . | . . . Part Schematics Acquired . | . . . Parts Built . | . . . Authchips . | . . . Time . | . . . Total Part Build Rating . | . . . Parts Repaired . | . . . Time . | . . . Parts Recycled . | . . . Recycled Matter . | . . . Retrieved Matter . | . . . Retrieved Components . | . . . Parts Scanalyzed . | . . . Part Schematics Acquired . | . . . Parts Damaged . | . . . Bothacking | -11 -10 -9 ------------ Run | Yrd Mat Mat Used RIF Installer . | . . . Robots Hacked . | . . . Non-combat . | . . . Combat . | . . . Robot Hacks Applied . | . . . Relay Couplers Released . | . . . Fabnet Peak Effective % . | . . . Robots Rewired . | . . . Allies Hacked . | . . . Hacks Repelled . | . . . Allies | -11 -10 -9 -------- Run | Yrd Mat Mat Total Allies . | . . . Largest Group . | . . . Highest-Rated Group . | . . . Highest-Rated Ally . | . . . Total Orders . | . . . Ally Attacks . | . . . Total Damage . | . . . Kills . | . . . Allies Corrupted . | . . . Allies Melted . | . . . Intel | -11 -10 -9 ------- Run | Yrd Mat Mat Robot Analysis Total 1 | . 1 . Derelict Logs Recovered . | . . . Drone Launches . | . . . Drone Recoveries . | . . . Exploration | -11 -10 -9 ------------- Run | Yrd Mat Mat Turns Passed 2448 | 94 1972 382 Spaces Moved 1035 | 46 885 104 Core 12 | 12 . . Treads 159 | 34 125 . Legs 713 | . 672 41 Wheels 151 | . 88 63 Hover . | . . . Flight . | . . . Fastest Speed 50 | 50 90 90 Average Speed 175 | 162 176 167 Slowest Speed 470 | 250 260 470 Overloaded Moves . | . . . Propulsion Burnouts . | . . . Robots Hopped . | . . . Cave-ins Triggered . | . . . Exploration Rate (%) 35 | 4 93 8 Regions Visited 2 Branch Regions . Pre-discovered Areas . | . . . Known Exits Taken . | . . . Unknown Exits Taken 2 | 1 1 . Scrap Searched . | . . . Spaces Dug 1 | . 1 . Terrain Destroyed 55 | . 52 3 Melee . | . . . Projectile 4 | . 4 . AOE 51 | . 48 3 Terrain Rammed . | . . . Walls Destroyed . | . . . Machines Disabled . | . . . Actions | -11 -10 -9 --------- Run | Yrd Mat Mat Total 1367 | 58 1091 218 Wait 85 | . 60 25 Move 1033 | 45 884 104 Hop . | . . . Pick Up 18 | 4 12 2 Fast Attach 15 | 6 5 4 Attach 13 | 1 2 10 Detach 3 | . 1 2 Swap 19 | . 14 5 Drop 13 | . 10 3 Fire 168 | 2 103 63 Melee . | . . . Ram . | . . . Kick . | . . . Crush . | . . . Escape Stasis . | . . . Rewire . | . . . Trap . | . . . Miscellaneous . | . . . Route ------- -11/Scrapyard -10/Materials (discovered 4 exits: [*Mat x3] / [*Min]) -9/Materials History --------- Turn | Location | Event 24 | -11/Scrapyard | Discovered new exit (range 15) 95 | -11/Scrapyard | Entered Materials 307 | -10/Materials | Build established: Mutant 456 | -10/Materials | Discovered new exit (range 13) 502 | -10/Materials | Discovered new exit (range 12) 686 | -10/Materials | Discovered new exit (range 8) 1538 | -10/Materials | Discovered new exit (range 6) 1719 | -10/Materials | Core integrity fell below 50% 2067 | -10/Materials | Entered another Materials area 2067 | -9/Materials | Evolved 2 slots: Utility x2 2363 | -9/Materials | Core integrity fell below 50% 2413 | -9/Materials | Core integrity fell below 20% 2449 | -9/Materials | Destroyed by G-34 Mercenary with Small Laser Last Messages --------------- U-05 Engineer lays Concrete. Extracted 1 matter. K-01 Serf collects debris. Extracted 1 matter. U-05 Engineer lays Concrete. Extracted 1 matter. K-01 Serf collects debris. Lgt. Assault Rifle destroyed. U-05 Engineer lays Concrete. Extracted 10 matter. U-05 Engineer lays Concrete. K-01 Serf collects debris. Com. Wheel destroyed. U-05 Engineer lays Concrete. K-01 Serf collects debris. U-05 Engineer lays Concrete. U-05 Engineer destroyed. K-01 Serf collects debris. G-34 Mercenary destroyed. K-01 Serf collects debris. Map ----- +----------------------------------------------------+ | ?????????????????????????????????????????????????? | | ?????????????????????????????????????????????????? | | ?????????????????????????????????????????????????? | | ?????????????????????????????????????????????????? | | ?????????????????????????????????????????????????? | | ?????????????????????????????????????????????????? | | ?????????????????????????????????????????????????? | | ?????????????????????????????????????????????????? | | ?????????????????????????????????????????????????? | | ?????????????????????????????????????????????????? | | ?????????????????????????????????????????????????? | | ?????????????????????????????????????????????????? | | ??????????????????????????????????????############ | | ??????????????????????????????????????# # ! # | | ??????????????????????????????????????# # ! # | | ??????????????????????????????????????# !#% # | | ?????????????????###################### %/ # | | ?????????????????# # # | | ????????????????## % # # | | ????????????????## u ######## | | ????????????????## k###############??????? | | ????????????????## % k #????????????????????? | | ???????????####### u % #????????????????????? | | ??????? u k %%!= #????????????????????? | | ??????? %= %[#????????????????????? | | ????????T % "@= #????????????????????? | | ???????? !![^ "" %g#????????????????????? | | ???????? ![[ """= #????????????????????? | | ????????? ![[ ???????????????????? | | ????????? ??????????????????? | | ????????? t ?????????????????? | | ?????????? ######## ????????????????? | | ??????????#########+##???????? ???????????????? | | ????????????????? ??????????? ?????????????? | | ????????????????? ???????????##+###????????????? | | ????????????????? ????????????? ??????????????? | | ?????????????????""???????????????= ?????????????? | | ?????????????????????????????????????????????????? | | ?????????????????????????????????????????????????? | | ?????????????????????????????????????????????????? | | ?????????????????????????????????????????????????? | | ?????????????????????????????????????????????????? | | ?????????????????????????????????????????????????? | | ?????????????????????????????????????????????????? | | ?????????????????????????????????????????????????? | | ?????????????????????????????????????????????????? | | ?????????????????????????????????????????????????? | | ?????????????????????????????????????????????????? | | ?????????????????????????????????????????????????? | | ?????????????????????????????????????????????????? | +----------------------------------------------------+ Best States ------------- Heat Dissipation 28 Energy Generation 10 Energy Capacity 250 Matter Stores 300 Matter Capacity 300 Sight Range 16 Robot Scan Range 14 Terrain Scan Density 10 Utility Shielding 33 Evasion (%) 55 Recoil Reduction 2 Item Schematics ----------------- None Robot Schematics ------------------ None Fabricated ------------ Nothing Alien Tech Used ----------------- None Achievements -------------- None Challenges ------------ None Game ------ Seed AbsorptionStormShielding Manual? 0 Play Time 00:20:53 Cumulative 30.2 hours Start 2024.07.01 @ 14:04:09 End 2024.07.01 @ 14:24:49 Sessions 1 Manual Loads 0 Difficulty Rogue Special Mode None Game No. 30 Rogue 29 Adventurer 1 Explorer 0 Win Type - Total 0 Types 0/0/0/0/0/0/0/0/0 Lore% 15 Gallery% 21 Achievement% 19 Wizard Run 0 Options --------- Layout 1 ASCII 0 Keyboard 0 Movement Mouse Keybinds 0 Fullscreen 2 Font 24/Smallcaps Map View 50x35 Zoom Use 0% Tactical HUD 0 Map Filters NONE Filters NONE Steam 1 RUN: aabf2802-4af6-4bd0-86e1-40128f3d5475